bitfinex/quotes_SOLUSD_20241213
["timestamp","ask_amount","ask_price","bid_price","bid_amount"]
[1734100229384,8.46668574,222.69,222.65,13.32808646]
[1734100229587,8.46668574,222.69,222.68,13.32808646]
[1734100229912,8.46668574,222.69,222.67,13.32808646]
[1734100230413,8.46668574,222.67,222.65,13.32808646]
[1734100230615,8.46668574,222.69,222.66,13.32808646]
[1734100230913,8.46668574,222.71,222.68,13.32808646]
[1734100231206,8.46668574,222.73,222.7,13.32808646]
[1734100231412,8.46668574,222.71,222.7,13.32808646]
[1734100232306,8.46668574,222.73,222.7,13.32808646]
[1734100232602,8.46668574,222.73,222.66,0.67348673]
[1734100232603,8.46668574,222.73,222.71,13.32808646]
[1734100232794,8.46668574,222.79,222.75,20.0]
[1734100232994,8.46668574,222.79,222.78,13.32808646]
[1734100233626,8.46668574,222.79,222.77,13.32808646]
[1734100233819,8.46668574,222.79,222.74,0.67319123]
[1734100233820,8.46668574,222.79,222.78,13.32808646]
[1734100234962,8.46668574,222.79,222.76,13.32808646]
[1734100235094,8.46668574,222.77,222.76,13.32808646]
[1734100235285,8.46668574,222.78,222.75,21.27960219]
[1734100235477,8.46668574,222.77,222.75,21.27960219]
[1734100235816,8.46668574,222.77,222.73,20.0]
[1734100236038,8.46668574,222.77,222.75,20.0]
[1734100236761,0.84169474,222.82,222.69,11.89921263]
[1734100236762,8.46668574,222.75,222.71,21.27960219]
[1734100237094,8.46668574,222.75,222.66,1.9002]
[1734100237095,8.46668574,222.75,222.7,21.27960219]
[1734100237308,8.46668574,222.73,222.69,21.27960219]
[1734100237478,8.46668574,222.73,222.67,21.27960219]
[1734100237814,8.46668574,222.7,222.67,21.27960219]
[1734100238196,8.46668574,222.7,222.68,21.27960219]
[1734100238418,8.46668574,222.7,222.67,21.27960219]
[1734100239028,8.46668574,222.7,222.68,21.27960219]
[1734100239246,8.46668574,222.7,222.67,21.27960219]
[1734100239539,8.46668574,222.7,222.66,21.27960219]
[1734100239699,8.46668574,222.7,222.64,11.2288]
[1734100239700,8.46668574,222.68,222.64,21.27960219]
[1734100239908,8.46668574,222.66,222.64,21.27960219]
[1734100240126,8.46668574,222.7,222.65,21.27960219]
[1734100240424,8.46668574,222.7,222.67,21.27960219]
[1734100241026,8.46668574,222.7,222.69,21.27960219]
[1734100241232,8.46668574,222.75,222.69,21.27960219]
[1734100241404,8.46668574,222.79,222.74,21.27960219]
[1734100241613,8.46668574,222.79,222.78,21.27960219]
[1734100243322,8.46668574,222.81,222.78,21.27960219]
[1734100243634,8.46668574,222.81,222.76,0.67311022]
[1734100243635,8.46668574,222.81,222.8,21.27960219]
[1734100243935,8.46668574,222.81,222.78,21.27960219]
[1734100244308,8.46668574,222.81,222.79,21.27960219]
[1734100244825,8.46668574,222.81,222.8,21.27960219]
[1734100245028,8.46668574,222.81,222.79,21.27960219]
[1734100245419,8.46668574,222.83,222.8,21.27960219]
[1734100245750,8.46668574,222.87,222.82,21.27960219]
[1734100245921,8.46668574,222.87,222.85,21.27960219]
[1734100246321,8.46668574,222.87,222.84,21.27960219]
[1734100246730,8.46668574,222.87,222.85,21.27960219]
[1734100246943,8.46668574,222.88,222.86,21.27960219]
[1734100247136,8.46668574,222.88,222.87,21.27960219]
[1734100247452,8.46668574,222.88,222.85,21.27960219]
[1734100247614,8.46668574,222.88,222.86,21.27960219]
[1734100248232,8.46668574,222.88,222.85,21.27960219]
[1734100248403,8.46668574,222.88,222.84,21.27960219]
[1734100248607,8.46668574,222.87,222.83,0.67294839]
[1734100248830,8.46668574,222.87,222.82,21.95260507]
[1734100249035,8.46668574,222.87,222.84,21.27960219]
[1734100249635,8.46668574,222.87,222.83,41.27960219]
[1734100249808,8.46668574,222.85,222.83,41.27960219]
[1734100250146,8.46668574,222.82,222.78,21.27960219]
[1734100250388,8.46668574,222.82,222.77,21.27960219]
[1734100250710,8.46668574,222.82,222.78,21.27960219]
[1734100251521,8.46668574,222.82,222.77,21.27960219]
[1734100251825,8.46668574,222.82,222.8,20.0]
[1734100252426,8.46668574,222.8,222.77,21.27960219]
[1734100252722,8.46668574,222.8,222.78,21.27960219]
[1734100254260,8.46668574,222.8,222.76,21.27960219]
[1734100255260,8.46668574,222.8,222.78,13.29840462]
[1734100255558,8.46668574,222.8,222.77,33.29840462]
[1734100255962,8.46668574,222.8,222.77,20.0]
[1734100256141,8.46668574,222.78,222.76,13.29840462]
[1734100256338,8.46668574,222.8,222.76,13.29840462]
[1734100256535,8.46668574,222.78,222.75,13.29840462]
[1734100256854,8.46668574,222.78,222.74,13.29840462]
[1734100257227,8.46668574,222.76,222.74,13.29840462]
[1734100258829,13.29840462,222.86,222.73,13.29840462]
[1734100258830,8.46668574,222.74,222.73,13.29840462]
[1734100259030,8.46668574,222.74,222.72,13.29840462]
[1734100259243,13.29840462,222.79,222.72,13.29840462]
[1734100259244,8.46668574,222.79,222.74,23.776884]
[1734100259431,8.46668574,222.81,222.78,13.29840462]
[1734100259636,8.46668574,222.81,222.8,13.29840462]
[1734100260340,8.46668574,222.83,222.8,13.29840462]
[1734100260539,8.46668574,222.85,222.82,13.29840462]
[1734100260739,8.46668574,222.85,222.84,13.29840462]
[1734100261354,8.46668574,222.87,222.84,13.29840462]
[1734100261539,8.46668574,222.85,222.84,13.29840462]
[1734100261735,8.46668574,222.85,222.83,13.29840462]
[1734100261945,8.46668574,222.85,222.84,13.29840462]
[1734100262419,8.46668574,222.84,222.82,20.0]
[1734100262474,8.46668574,222.87,222.82,20.0]
[1734100262638,8.46668574,222.87,222.83,20.0]
[1734100262836,8.46668574,222.84,222.83,20.0]
[1734100263532,8.46668574,222.8,222.77,13.29840462]
[1734100264238,8.46668574,222.78,222.77,13.29840462]
[1734100264872,8.46668574,222.8,222.77,13.29840462]
[1734100265046,8.46668574,222.8,222.78,13.29840462]
[1734100265559,8.46668574,222.78,222.77,33.29840462]
[1734100265946,8.46668574,222.78,222.76,13.29840462]
[1734100266553,8.46668574,222.76,222.73,13.29840462]
[1734100267840,8.46668574,222.76,222.74,13.29840462]
[1734100268271,8.46668574,222.78,222.75,13.29840462]
[1734100268433,8.46668574,222.76,222.74,23.776884]
[1734100268880,8.46668574,222.76,222.73,0.67320424]
[1734100269358,8.46668574,222.82,222.78,23.776884]
[1734100269563,8.46668574,222.82,222.81,13.29840462]
[1734100269763,8.46668574,222.84,222.81,13.29840462]
[1734100269964,8.46668574,222.84,222.81,33.29840462]
[1734100270160,0.12549,222.83,222.81,33.29840462]
[1734100270355,8.46668574,222.84,222.82,13.29840462]
[1734100270561,8.46668574,222.84,222.83,13.29840462]
[1734100270779,8.46668574,222.89,222.83,13.29840462]
[1734100270967,8.46668574,222.88,222.85,13.29840462]
[1734100271286,8.46668574,222.86,222.84,0.67290945]
[1734100271473,8.46668574,222.86,222.84,13.29840462]
[1734100271673,0.12549,222.85,222.82,0.67292981]
[1734100271973,0.12549,222.85,222.84,13.29840462]
[1734100272584,0.25098,222.85,222.84,13.29840462]
[1734100272788,8.46668574,222.9,222.84,13.29840462]
[1734100273093,0.25098,222.89,222.85,0.67287659]
[1734100273383,8.46668574,222.9,222.86,23.776884]
[1734100273567,8.46668574,222.9,222.87,20.67284003]
[1734100274788,0.25098,222.89,222.87,20.67284003]
[1734100275016,8.46668574,222.93,222.88,37.07528862]
[1734100275290,8.46668574,222.93,222.92,13.29840462]
[1734100276187,0.12549,222.92,222.91,20.0]
[1734100276397,0.12549,222.92,222.91,33.29840462]
[1734100276903,8.46668574,222.93,222.91,33.29840462]
[1734100277206,8.46668574,222.93,222.92,13.29840462]
[1734100277992,8.59217574,222.93,222.92,13.29840462]
[1734100278511,8.46668574,222.97,222.92,37.74799084]
[1734100278903,0.5345105,223.05,222.96,13.29840462]
[1734100278904,8.46668574,222.99,222.96,13.29840462]
[1734100278918,8.46668574,222.99,222.98,13.29840462]
[1734100279212,0.5345105,223.05,222.99,23.776884]
[1734100279213,8.46668574,223.01,222.99,23.776884]
[1734100279399,8.46668574,223.01,223.0,13.29840462]
[1734100279904,0.5345105,223.05,223.03,20.0]
[1734100280115,0.5345105,223.05,223.04,13.29840462]
[1734100280614,0.5345105,223.05,223.04,37.74758663]
[1734100281890,1.05e-05,223.05,223.04,52.74758663]
[1734100282077,1.05e-05,223.05,223.04,37.74758663]
[1734100286285,8.46668574,223.15,223.05,26.2082]
[1734100286495,8.46668574,223.15,223.14,37.07528862]
[1734100286695,8.46668574,223.19,223.14,37.07528862]
[1734100286907,8.46668574,223.19,223.18,13.29840462]
[1734100287105,8.46668574,223.22,223.18,13.29840462]
[1734100287322,8.46668574,223.22,223.21,13.29840462]
[1734100288223,8.46668574,223.22,223.21,37.07528862]
[1734100288724,0.5345105,223.27,223.22,23.776884]
[1734100288725,8.46668574,223.26,223.22,23.776884]
[1734100288923,8.46668574,223.24,223.23,13.29840462]
[1734100289291,0.12549,223.23,223.22,44.96795828]
[1734100291015,8.46668574,223.26,223.22,44.96795828]
[1734100291187,0.5345105,223.27,223.26,23.776884]
[1734100291399,0.5345105,223.27,223.26,44.96795828]
[1734100291819,0.5345105,223.27,223.26,46.88385828]
[1734100293142,0.6600005,223.27,223.26,46.88385828]
[1734100293841,0.5345105,223.27,223.26,58.08155828]
[1734100296531,1.05e-05,223.27,223.26,73.08155828]
[1734100296705,8.081,223.44,223.33,23.776884]
[1734100296706,8.46668574,223.39,223.33,23.776884]
[1734100296927,8.46668574,223.39,223.38,41.19107428]
[1734100297236,8.59217574,223.39,223.38,20.0]
[1734100297626,0.12549,223.39,223.38,20.0]
[1734100297904,8.59217574,223.39,223.38,20.0]
[1734100298303,0.12549,223.39,223.38,20.0]
[1734100298512,8.59217574,223.39,223.38,20.0]
[1734100299537,0.12549,223.39,223.38,20.0]
[1734100299850,8.59217574,223.39,223.38,20.0]
[1734100300022,8.59217574,223.39,223.38,21.19107428]
[1734100300224,0.12549,223.39,223.38,21.19107428]
[1734100300534,8.46668574,223.41,223.4,20.0]
[1734100300738,8.46668574,223.43,223.41,20.0]
[1734100300925,8.46668574,223.43,223.42,21.19107428]
[1734100301118,8.46668574,223.46,223.42,21.86224856]
[1734100301466,8.46668574,223.46,223.44,21.19107428]
[1734100301622,8.46668574,223.43,223.42,41.86224856]
[1734100301828,8.59217574,223.43,223.42,41.19107428]
[1734100302019,8.59217574,223.43,223.42,20.0]
[1734100302443,0.12549,223.42,223.4,21.19107428]
[1734100302718,8.71766574,223.41,223.4,21.19107428]
[1734100302966,8.59217574,223.35,223.34,24.48387651]
[1734100303246,0.12549,223.34,223.33,21.19107428]
[1734100303452,0.12549,223.32,223.31,21.19107428]
[1734100303622,0.12549,223.32,223.3,23.85231045]
[1734100303814,0.12549,223.32,223.31,21.19107428]
[1734100304014,0.25098,223.32,223.3,21.19107428]
[1734100304251,8.59217574,223.31,223.3,21.19107428]
[1734100304421,8.59217574,223.31,223.24,0.67154787]
[1734100304422,0.12549,223.3,223.29,21.19107428]
[1734100306050,8.59217574,223.3,223.29,21.19107428]
[1734100306217,15.0,223.4,223.25,21.19107428]
[1734100306218,0.12549,223.27,223.25,21.19107428]
[1734100306421,8.59217574,223.25,223.24,21.19107428]
[1734100306736,0.12549,223.24,223.23,21.19107428]
[1734100307056,8.59217574,223.23,223.22,21.19107428]
[1734100308349,8.59217574,223.23,223.2,3.30989738]
[1734100308350,0.12549,223.22,223.21,21.19107428]
[1734100308524,8.59217574,223.21,223.2,21.19107428]
[1734100308717,8.59217574,223.21,223.19,21.19107428]
[1734100308718,0.12549,223.2,223.19,21.19107428]
[1734100308930,0.12549,223.18,223.17,21.19107428]
[1734100309119,0.12549,223.18,223.15,21.19107428]
[1734100309440,0.12549,223.16,223.15,21.19107428]
[1734100310669,0.12549,223.14,223.13,21.19107428]
[1734100311219,0.12549,223.14,223.11,21.19107428]
[1734100311220,8.59217574,223.13,223.11,21.19107428]
[1734100311342,29.99999811,223.24,223.09,21.19107428]
[1734100311343,8.59217574,223.1,223.09,21.19107428]
[1734100311646,0.12549,223.09,223.07,21.19107428]
[1734100311853,8.59217574,223.08,223.07,21.19107428]
[1734100312150,0.12549,223.08,223.07,21.19107428]
[1734100312330,8.59217574,223.08,223.07,21.19107428]
[1734100312737,0.12549,223.01,222.99,0.67227562]
[1734100312943,0.34511002,223.03,223.0,21.19107428]
[1734100313243,0.34511002,223.03,223.02,21.19107428]
[1734100314437,0.34511002,223.05,223.04,20.0]
[1734100314658,0.34511002,223.07,223.04,41.19107428]
[1734100314855,0.34511002,223.07,223.06,21.19107428]
[1734100315025,0.34511002,223.09,223.08,20.0]
[1734100315226,0.34511002,223.09,223.08,41.19107428]
[1734100315453,0.47060002,223.09,223.08,41.19107428]
[1734100316529,0.47060002,223.09,223.08,20.0]
[1734100316725,0.47060002,223.08,223.07,21.19107428]
[1734100317139,0.34511002,223.16,223.1,20.0]
[1734100317342,0.34511002,223.14,223.11,20.0]
[1734100317634,0.34511002,223.14,223.12,21.86315632]
[1734100317926,0.12549,223.13,223.12,21.86315632]
[1734100318325,0.34511002,223.16,223.12,21.86315632]
[1734100318525,0.34511002,223.16,223.14,21.19107428]
[1734100318957,0.12549,223.15,223.13,21.19107428]
[1734100320770,6.1257,223.24,223.17,20.0]
[1734100320771,0.34511002,223.18,223.17,20.0]
[1734100320954,0.34511002,223.19,223.17,41.19107428]
[1734100321149,0.34511002,223.25,223.21,20.0]
[1734100321462,0.34511002,223.25,223.23,21.19107428]
[1734100322250,0.12549,223.24,223.23,21.19107428]
[1734100322448,0.34511002,223.25,223.23,21.19107428]
[1734100322671,0.34511002,223.27,223.24,21.86280148]
[1734100322869,0.34511002,223.27,223.26,21.19107428]
[1734100323033,0.34511002,223.29,223.26,21.19107428]
[1734100323254,0.34511002,223.31,223.3,20.0]
[1734100323461,0.34511002,223.31,223.3,41.19107428]
[1734100323661,0.34511002,223.33,223.3,41.19107428]
[1734100323966,0.34511002,223.33,223.32,21.19107428]
[1734100324158,0.47060002,223.33,223.32,21.19107428]
[1734100324344,0.12549,223.32,223.31,21.86252946]
[1734100324676,0.34511002,223.35,223.31,21.86252946]
[1734100324873,0.34511002,223.32,223.31,0.67145518]
[1734100325036,0.12549,223.31,223.29,20.0]
[1734100325557,0.12549,223.31,223.3,0.67154504]
[1734100325865,0.12549,223.33,223.32,20.0]
[1734100326064,0.12549,223.33,223.31,21.19107428]
[1734100326241,0.34511002,223.34,223.32,21.86255827]
[1734100326646,0.12549,223.33,223.32,21.86255827]
[1734100326942,0.12549,223.31,223.3,20.0]
[1734100327461,0.12549,223.24,223.21,23.83132145]
[1734100327670,0.34511002,223.23,223.21,2.64024717]
[1734100327961,0.34511002,223.23,223.21,23.83132145]
[1734100328460,0.34511002,223.23,223.21,2.64024717]
[1734100329150,0.12549,223.22,223.19,21.19107428]
[1734100329278,0.12549,223.2,223.17,21.86294762]
[1734100329567,0.12549,223.2,223.18,21.19107428]
[1734100330151,0.12549,223.2,223.19,21.19107428]
[1734100330342,0.34511002,223.21,223.19,23.902269]
[1734100330553,0.34511002,223.21,223.2,21.86284653]
[1734100330746,0.12549,223.23,223.22,20.0]
[1734100331272,0.12549,223.23,223.22,21.19107428]
[1734100331569,15.0,223.35,223.22,21.19107428]
[1734100331570,0.34511002,223.29,223.25,20.0]
[1734100331779,0.34511002,223.27,223.25,20.0]
[1734100331936,0.47060002,223.3,223.29,20.0]
[1734100332140,0.47060002,223.3,223.29,41.19107428]
[1734100332439,0.34511002,223.3,223.29,41.19107428]
[1734100332659,0.47060002,223.3,223.29,41.19107428]
[1734100333939,0.12549,223.29,223.27,20.0]
[1734100334164,6.6598,223.38,223.27,20.0]
[1734100334165,0.47060002,223.28,223.27,20.0]
[1734100334372,0.47060002,223.28,223.27,41.19107428]
[1734100334373,0.34511002,223.28,223.27,41.19107428]
[1734100334964,0.34511002,223.34,223.28,11.1967]
[1734100335286,6.0803,223.43,223.35,20.0]
[1734100335287,0.34511002,223.38,223.35,20.0]
[1734100335579,0.12549,223.37,223.36,20.0]
[1734100336252,0.34511002,223.38,223.36,20.0]
[1734100336561,0.12549,223.37,223.36,20.0]
[1734100337253,0.47060002,223.32,223.29,0.6713996]
[1734100337464,0.47060002,223.32,223.24,19.1846]
[1734100337465,0.34511002,223.28,223.25,21.19107428]
[1734100337841,0.34511002,223.28,223.24,21.86273078]
[1734100338042,0.34511002,223.25,223.22,21.19107428]
[1734100338261,0.34511002,223.24,223.23,21.19107428]
[1734100338752,0.34511002,223.24,223.22,21.19107428]
[1734100339177,0.12549,223.26,223.25,20.0]
[1734100342959,0.34511002,223.24,223.23,41.19107428]
[1734100343161,0.34511002,223.24,223.23,20.0]
[1734100343462,0.34511002,223.24,223.23,41.19107428]
[1734100343668,0.34511002,223.27,223.23,41.86281451]
[1734100343871,0.34511002,223.29,223.26,21.19107428]
[1734100344078,0.34511002,223.27,223.26,21.86269214]
[1734100344246,0.34511002,223.27,223.23,31.199]
[1734100344247,0.12549,223.26,223.25,21.19107428]
[1734100344447,0.83954514,223.36,223.24,21.19107428]
[1734100344448,0.34511002,223.25,223.24,21.19107428]
[1734100346069,0.34511002,223.22,223.2,0.67172179]
[1734100346344,0.34511002,223.22,223.2,21.19107428]
[1734100346551,0.34511002,223.22,223.21,21.19107428]
[1734100348070,0.34511002,223.22,223.21,23.83883666]
[1734100348587,0.12549,223.21,223.2,20.0]
[1734100348751,0.12549,223.21,223.2,21.19107428]
[1734100349209,0.12549,223.19,223.18,21.8628833]
[1734100349382,0.12549,223.19,223.18,21.19107428]
[1734100351162,0.47060002,223.18,223.17,21.19107428]
[1734100351484,0.47060002,223.16,223.15,21.19107428]
[1734100352576,0.12549,223.15,223.14,21.19107428]
[1734100353277,0.34511002,223.16,223.14,21.86310478]
[1734100353585,0.47060002,223.16,223.14,41.86310478]
[1734100353896,0.34511002,223.16,223.15,21.19107428]
[1734100354071,15.0,223.28,223.15,21.19107428]
[1734100354072,0.34511002,223.2,223.18,20.0]
[1734100354381,0.34511002,223.23,223.19,21.86291481]
[1734100354584,0.47060002,223.21,223.2,21.19107428]
[1734100354769,0.47060002,223.21,223.19,21.86291481]
[1734100354959,0.47060002,223.21,223.2,21.19107428]
[1734100355154,0.12549,223.21,223.2,21.19107428]
[1734100355361,0.34511002,223.23,223.22,20.0]
[1734100355612,0.34511002,223.23,223.22,41.19107428]
[1734100356400,0.12549,223.24,223.23,20.0]
[1734100356570,0.47060002,223.24,223.23,41.86282413]
[1734100357686,0.47060002,223.24,223.23,20.0]
[1734100357906,0.47060002,223.24,223.2,21.19107428]
[1734100357907,0.34511002,223.22,223.2,21.19107428]
[1734100358187,15.0,223.32,223.18,2.68160494]
[1734100358188,0.47060002,223.2,223.19,21.19107428]
[1734100358557,0.47060002,223.2,223.18,0.67180494]
[1734100358558,0.12549,223.19,223.18,21.86287922]
[1734100358805,0.34511002,223.18,223.17,21.19107428]
[1734100358981,0.12549,223.19,223.17,21.19107428]
[1734100359180,0.34511002,223.18,223.17,21.19107428]
[1734100359456,0.47060002,223.18,223.17,21.19107428]
[1734100359656,0.34511002,223.14,223.1,21.19107428]
[1734100359891,0.34511002,223.12,223.09,21.19107428]
[1734100360062,0.34511002,223.12,223.09,32.39727428]
[1734100360389,0.34511002,223.09,223.08,2.74426317]
[1734100360570,0.34511002,223.09,223.07,21.19107428]
[1734100361878,0.34511002,223.07,223.06,21.19107428]
[1734100362086,0.34511002,223.07,223.06,21.86330447]
[1734100362460,0.34511002,223.09,223.06,21.86330447]
[1734100362667,0.47060002,223.09,223.08,21.19107428]
[1734100363075,0.47060002,223.09,223.08,20.0]
[1734100364470,0.47060002,223.09,223.08,41.19107428]
[1734100365379,0.34511002,223.11,223.08,41.19107428]
[1734100365578,0.34511002,223.11,223.1,21.19107428]
[1734100365789,0.47060002,223.11,223.1,21.19107428]
[1734100365978,0.47060002,223.11,223.09,21.19107428]
[1734100366897,0.47060002,223.11,223.1,21.19107428]
[1734100367074,0.47060002,223.11,223.09,21.19107428]
[1734100367774,0.34511002,223.11,223.1,21.86324353]
[1734100368087,0.34511002,223.15,223.13,20.0]
[1734100368334,6.3476,223.25,223.13,20.0]
[1734100368335,0.34511002,223.17,223.16,20.0]
[1734100368545,0.34511002,223.19,223.16,41.19107428]
[1734100368694,0.34511002,223.23,223.2,20.0]
[1734100368887,15.0,223.36,223.22,21.19107428]
[1734100368888,0.34511002,223.27,223.22,21.19107428]
[1734100369092,0.34511002,223.23,223.2,20.0]
[1734100369402,0.34511002,223.23,223.22,20.0]
[1734100369762,0.34511002,223.29,223.26,20.0]
[1734100370046,0.34511002,223.31,223.26,20.0]
[1734100370330,0.34511002,223.33,223.32,20.0]
[1734100371771,0.34511002,223.33,223.32,41.19107428]
[1734100372211,0.34511002,223.34,223.32,41.19107428]
[1734100372376,0.34511002,223.34,223.33,21.19107428]
[1734100373393,0.34511002,223.34,223.32,0.67142691]
[1734100373595,0.34511002,223.32,223.31,41.19107428]
[1734100373767,0.47060002,223.32,223.31,41.19107428]
[1734100374413,0.47060002,223.32,223.31,20.0]
[1734100375695,0.47060002,223.32,223.25,0.67156947]
[1734100375696,0.12549,223.31,223.3,21.19107428]
[1734100376169,0.34511002,223.32,223.3,21.19107428]
[1734100376373,0.34511002,223.34,223.33,20.0]
[1734100376572,0.34511002,223.36,223.34,20.0]
[1734100376995,0.47060002,223.36,223.35,21.19107428]
[1734100377412,0.34511002,223.36,223.35,21.19107428]
[1734100378081,0.47060002,223.36,223.35,21.19107428]
[1734100379586,15.0,223.46,223.35,21.19107428]
[1734100379587,0.34511002,223.39,223.35,21.19107428]
[1734100379786,0.34511002,223.39,223.38,41.19107428]
[1734100380110,0.34511002,223.39,223.38,20.0]
[1734100380300,0.12549,223.38,223.37,20.0]
[1734100380478,0.47060002,223.37,223.36,21.19107428]
[1734100381303,0.34511002,223.37,223.36,21.86247015]
[1734100381671,0.34511002,223.37,223.36,21.19107428]
[1734100381872,8.3646,223.48,223.37,11.1921]
[1734100381873,21.19107428,223.48,223.37,11.1921]
[1734100382077,1.37373736,223.5,223.43,21.19107428]
[1734100382078,21.72558478,223.5,223.43,21.19107428]
[1734100383017,0.5345105,223.5,223.45,21.19107428]
[1734100383194,0.5345105,223.5,223.47,21.19107428]
[1734100383396,0.5345105,223.5,223.49,21.19107428]
[1734100386114,0.12549,223.49,223.48,20.0]
[1734100386612,0.12549,223.49,223.48,41.19107428]
[1734100387478,0.12549,223.49,223.48,20.0]
[1734100387700,0.12549,223.49,223.44,21.19107428]
[1734100390011,0.12549,223.49,223.43,21.19107428]
[1734100390216,0.25098,223.49,223.43,21.19107428]
[1734100390395,0.12549,223.45,223.39,21.19107428]
[1734100390737,0.12549,223.45,223.35,0.67125422]
[1734100390882,0.12549,223.42,223.37,21.19107428]
[1734100391097,0.12549,223.42,223.38,21.19107428]
[1734100391388,21.19107428,223.49,223.41,21.19107428]
[1734100391603,0.5345105,223.5,223.48,21.19107428]
[1734100391788,0.5345105,223.5,223.49,21.19107428]
[1734100394197,0.6600005,223.5,223.49,21.19107428]
[1734100394599,0.5345105,223.5,223.49,21.19107428]
[1734100398227,1.05e-05,223.5,223.49,44.96795828]
[1734100400811,1.05e-05,223.5,223.49,47.6363546]
[1734100401021,1.05e-05,223.5,223.49,68.95291888]
[1734100401230,1.8748,223.66,223.49,68.95291888]
[1734100401231,1.8748,223.66,223.6,21.19107428]
[1734100401411,1.8748,223.66,223.61,21.19107428]
[1734100401587,21.19107428,223.68,223.61,21.19107428]
[1734100401786,27.34467428,223.69,223.62,21.19107428]
[1734100402098,21.19107428,223.71,223.64,21.19107428]
[1734100402835,21.19107428,223.7,223.64,21.19107428]
[1734100403004,21.19107428,223.68,223.61,21.19107428]
[1734100403214,0.12549,223.67,223.61,21.19107428]
[1734100403407,0.12549,223.66,223.63,20.0]
[1734100404114,0.12549,223.66,223.61,21.19107428]
[1734100404319,0.12549,223.66,223.59,41.19107428]
[1734100404320,21.31656428,223.66,223.59,41.19107428]
[1734100404486,21.31656428,223.64,223.57,21.19107428]
[1734100404695,0.12549,223.64,223.59,21.19107428]
[1734100404904,0.12549,223.65,223.6,21.19107428]
[1734100405096,0.12549,223.65,223.59,21.19107428]
[1734100405607,0.12549,223.65,223.58,21.19107428]
[1734100405608,0.12549,223.64,223.58,21.19107428]
[1734100405792,0.12549,223.64,223.59,21.19107428]
[1734100406286,21.19107428,223.66,223.59,21.19107428]
[1734100406485,21.19107428,223.68,223.61,21.19107428]
[1734100406908,0.83830406,223.71,223.61,21.19107428]
[1734100406909,0.12549,223.66,223.61,21.19107428]
[1734100407488,0.12549,223.65,223.59,21.19107428]
[1734100408119,0.12549,223.66,223.6,41.19107428]
[1734100408292,0.12549,223.66,223.62,21.19107428]
[1734100408812,0.12549,223.65,223.6,20.0]
[1734100409011,0.12549,223.65,223.62,20.0]
[1734100410508,0.5345105,223.72,223.64,21.19107428]
[1734100410699,0.5345105,223.72,223.66,21.19107428]
[1734100411209,21.19107428,223.7,223.66,20.0]
[1734100411514,0.12549,223.69,223.66,20.0]
[1734100412693,21.72558478,223.72,223.66,20.0]
[1734100412897,0.5345105,223.72,223.67,21.19107428]
[1734100413517,0.5345105,223.72,223.71,21.19107428]
[1734100416605,0.12549,223.71,223.7,21.19107428]
[1734100416805,0.12549,223.71,223.69,21.19107428]
[1734100417125,0.12549,223.71,223.68,41.19107428]
[1734100417295,0.12549,223.71,223.69,21.19107428]
[1734100417496,0.12549,223.71,223.68,41.19107428]
[1734100417703,0.12549,223.71,223.68,20.0]
[1734100417931,0.12549,223.71,223.65,17.886579]
[1734100418118,21.72558478,223.72,223.64,0.67034309]
[1734100418119,0.12549,223.69,223.64,21.19107428]
[1734100418329,0.12549,223.69,223.63,41.70540764]
[1734100418504,0.12549,223.69,223.64,21.19107428]
[1734100418881,0.12549,223.7,223.65,21.19107428]
[1734100419096,0.12549,223.7,223.66,21.19107428]
[1734100419310,0.12549,223.7,223.67,21.19107428]
[1734100419410,0.12549,223.71,223.67,21.19107428]
[1734100419623,0.12549,223.71,223.66,41.19107428]
[1734100420133,0.12549,223.71,223.67,21.19107428]
[1734100420517,0.12549,223.71,223.66,41.19107428]
[1734100421027,0.12549,223.69,223.66,20.0]
[1734100425823,0.5345105,223.72,223.67,13.19553236]
[1734100426015,0.5345105,223.72,223.65,0.67057376]
[1734100426016,0.5345105,223.72,223.71,13.19553236]
[1734100428223,0.6600005,223.72,223.71,13.19553236]
[1734100428640,0.6600005,223.72,223.7,13.19553236]
[1734100428826,0.6600005,223.72,223.65,0.67057376]
[1734100428827,0.12549,223.71,223.69,13.19553236]
[1734100429743,0.12549,223.71,223.68,13.19553236]
[1734100431358,0.5345105,223.72,223.7,13.19553236]
[1734100431535,0.5345105,223.72,223.71,13.19553236]
[1734100434046,0.6600005,223.72,223.71,20.0]
[1734100434248,0.12549,223.71,223.67,13.19553236]
[1734100434539,0.12549,223.71,223.7,20.0]
[1734100435524,0.12549,223.71,223.68,13.19553236]
[1734100435731,0.12549,223.71,223.67,13.19553236]
[1734100436446,0.12549,223.71,223.63,11.84956516]
[1734100436447,13.32102236,223.71,223.68,20.0]
[1734100437133,0.12549,223.71,223.68,20.0]
[1734100437742,0.5345105,223.72,223.7,20.0]